[Event "Titled Tuesday Blitz April 19 Early 2022"]
[White "Seo, Jung Min"]
[Black "Sarana, Alexey"]
[WhiteFideId "1734687"]
[BlackFideId "24133795"]
[WhiteElo "2401"]
[BlackElo "2666"]
[Result "1-0"]
[Round "03"]
[TimeControl "180+1"]
[Date "2022.04.19"]
[WhiteClock "0:00:50"]
[BlackClock "0:00:03"]

1. d4 {[%clk 0:03:00]}  Nf6 {[%clk 0:02:59]} 2. c4 {[%clk 0:03:01]}  e6 {[%clk 0:03:00]} 3. Nf3 {[%clk 0:03:01]}  d5 {[%clk 0:03:00]} 4. Nc3 {[%clk 0:03:01]}  Nbd7 {[%clk 0:02:59]} 5. cxd5 {[%clk 0:03:00]}  exd5 {[%clk 0:02:59]} 6. Bg5 {[%clk 0:03:00]}  c6 {[%clk 0:02:57]} 7. e3 {[%clk 0:03:00]}  h6 {[%clk 0:02:58]} 8. Bh4 {[%clk 0:03:00]}  g5 {[%clk 0:02:59]} 9. Bg3 {[%clk 0:03:00]}  Nh5 {[%clk 0:02:59]} 10. Be5 {[%clk 0:03:00]}  Nhf6 {[%clk 0:02:56]} 11. Bg3 {[%clk 0:03:00]}  Ne4 {[%clk 0:02:42]} 12. Nxe4 {[%clk 0:02:59]}  dxe4 {[%clk 0:02:43]} 13. Nd2 {[%clk 0:02:59]}  Qe7 {[%clk 0:02:36]} 14. h4 {[%clk 0:02:55]}  Rg8 {[%clk 0:02:20]} 15. hxg5 {[%clk 0:02:52]}  hxg5 {[%clk 0:02:21]} 16. a3 {[%clk 0:02:44]}  Nf6 {[%clk 0:02:19]} 17. Be2 {[%clk 0:02:33]}  Bf5 {[%clk 0:02:13]} 18. Rc1 {[%clk 0:02:25]}  Qd7 {[%clk 0:02:01]} 19. Nc4 {[%clk 0:02:23]}  Be7 {[%clk 0:01:56]} 20. Ne5 {[%clk 0:02:21]}  Qd8 {[%clk 0:01:57]} 21. Bc4 {[%clk 0:02:18]}  Nd5 {[%clk 0:01:56]} 22. Qh5 {[%clk 0:02:18]}  Be6 {[%clk 0:01:53]} 23. Qh7 {[%clk 0:02:14]}  Rf8 {[%clk 0:01:52]} 24. Qxe4 {[%clk 0:02:13]}  Qb6 {[%clk 0:01:49]} 25. Qc2 {[%clk 0:02:12]}  O-O-O {[%clk 0:01:44]} 26. Nd3 {[%clk 0:02:09]}  Rh8 {[%clk 0:01:35]} 27. Rf1 {[%clk 0:02:06]}  Qa5+ {[%clk 0:01:09]} 28. Qd2 {[%clk 0:02:03]}  Qa4 {[%clk 0:00:59]} 29. Ba2 {[%clk 0:01:52]}  Nxe3 {[%clk 0:00:47]} 30. Bxe6+ {[%clk 0:01:51]}  fxe6 {[%clk 0:00:45]} 31. fxe3 {[%clk 0:01:50]}  g4 {[%clk 0:00:43]} 32. Qc2 {[%clk 0:01:43]}  Qa5+ {[%clk 0:00:41]} 33. Ke2 {[%clk 0:01:38]}  Qd5 {[%clk 0:00:40]} 34. Nf4 {[%clk 0:01:37]}  Qb5+ {[%clk 0:00:40]} 35. Kf2 {[%clk 0:01:36]}  Rdf8 {[%clk 0:00:39]} 36. b4 {[%clk 0:01:31]}  Bd6 {[%clk 0:00:34]} 37. Qc4 {[%clk 0:01:26]}  Qf5 {[%clk 0:00:34]} 38. Ke2 {[%clk 0:01:26]}  Qe4 {[%clk 0:00:29]} 39. Qd3 {[%clk 0:01:17]}  Qxd3+ {[%clk 0:00:23]} 40. Kxd3 {[%clk 0:01:16]}  e5 {[%clk 0:00:23]} 41. Ne2 {[%clk 0:01:14]}  Re8 {[%clk 0:00:21]} 42. dxe5 {[%clk 0:01:09]}  Bxe5 {[%clk 0:00:21]} 43. Bxe5 {[%clk 0:01:09]}  Rxe5 {[%clk 0:00:22]} 44. Nd4 {[%clk 0:01:09]}  Rhe8 {[%clk 0:00:22]} 45. Rce1 {[%clk 0:01:09]}  a5 {[%clk 0:00:22]} 46. Rf4 {[%clk 0:01:07]}  axb4 {[%clk 0:00:23]} 47. axb4 {[%clk 0:01:07]}  Rg8 {[%clk 0:00:22]} 48. Ref1 {[%clk 0:01:06]}  Kc7 {[%clk 0:00:22]} 49. Rf8 {[%clk 0:01:05]}  Rgg5 {[%clk 0:00:21]} 50. R1f5 {[%clk 0:01:04]}  Kb6 {[%clk 0:00:21]} 51. Rxg5 {[%clk 0:01:03]}  Rxg5 {[%clk 0:00:22]} 52. Rf5 {[%clk 0:01:03]}  Rg8 {[%clk 0:00:22]} 53. e4 {[%clk 0:01:03]}  Ra8 {[%clk 0:00:21]} 54. e5 {[%clk 0:01:02]}  Ra3+ {[%clk 0:00:22]} 55. Ke4 {[%clk 0:01:02]}  Rg3 {[%clk 0:00:22]} 56. Rf2 {[%clk 0:00:59]}  Kc7 {[%clk 0:00:21]} 57. Ne6+ {[%clk 0:00:57]}  Kd7 {[%clk 0:00:20]} 58. Nc5+ {[%clk 0:00:57]}  Ke7 {[%clk 0:00:21]} 59. e6 {[%clk 0:00:55]}  Kd6 {[%clk 0:00:02]} 60. Rd2+ {[%clk 0:00:53]}  Ke7 {[%clk 0:00:02]} 61. Rd7+ {[%clk 0:00:53]}  Kf6 {[%clk 0:00:03]} 62. Rf7+ {[%clk 0:00:50]}  Kg6 {[%clk 0:00:03]} 63. Rf2 {[%clk 0:00:50]} 1-0


[Site "https://www.chess.com"]

[Event "Titled Tuesday Blitz April 19 Early 2022"]
[White "Shandrygin, Nikita"]
[Black "Mikhailovsky, Vladimir"]
[WhiteFideId "24198668"]
[BlackFideId "34105414"]
[WhiteElo "2323"]
[BlackElo "2349"]
[Result "0-1"]
[Round "03"]
[TimeControl "180+1"]
[Date "2022.04.19"]
[WhiteClock "0:00:15"]
[BlackClock "0:00:18"]

1. Nf3 {[%clk 0:02:53]}  d5 {[%clk 0:02:52]} 2. g3 {[%clk 0:02:54]}  Nd7 {[%clk 0:02:53]} 3. d4 {[%clk 0:02:54]}  Ngf6 {[%clk 0:02:53]} 4. Bg2 {[%clk 0:02:54]}  Nb6 {[%clk 0:02:53]} 5. O-O {[%clk 0:02:54]}  Bf5 {[%clk 0:02:54]} 6. Ne5 {[%clk 0:02:54]}  e6 {[%clk 0:02:53]} 7. c4 {[%clk 0:02:54]}  c6 {[%clk 0:02:52]} 8. Nc3 {[%clk 0:02:54]}  Be7 {[%clk 0:02:50]} 9. e3 {[%clk 0:02:52]}  O-O {[%clk 0:02:48]} 10. Qe2 {[%clk 0:02:51]}  dxc4 {[%clk 0:02:33]} 11. Nxc4 {[%clk 0:02:50]}  c5 {[%clk 0:02:33]} 12. dxc5 {[%clk 0:02:19]}  Bd3 {[%clk 0:02:18]} 13. Rd1 {[%clk 0:02:04]}  Bxe2 {[%clk 0:02:00]} 14. Rxd8 {[%clk 0:02:05]}  Raxd8 {[%clk 0:01:52]} 15. Nxb6 {[%clk 0:01:55]}  axb6 {[%clk 0:01:52]} 16. Nxe2 {[%clk 0:01:53]}  Rd1+ {[%clk 0:01:52]} 17. Bf1 {[%clk 0:01:52]}  bxc5 {[%clk 0:01:41]} 18. Nc3 {[%clk 0:01:52]}  Rdd8 {[%clk 0:01:25]} 19. e4 {[%clk 0:01:35]}  Nd7 {[%clk 0:01:25]} 20. Be3 {[%clk 0:01:21]}  Bf6 {[%clk 0:01:17]} 21. Rd1 {[%clk 0:01:17]}  Bxc3 {[%clk 0:00:56]} 22. bxc3 {[%clk 0:01:11]}  b6 {[%clk 0:00:57]} 23. Rd6 {[%clk 0:00:48]}  Rfe8 {[%clk 0:00:52]} 24. Bb5 {[%clk 0:00:46]}  Nf6 {[%clk 0:00:46]} 25. Rxb6 {[%clk 0:00:44]}  Rb8 {[%clk 0:00:44]} 26. Rxb8 {[%clk 0:00:15]}  Rxb8 {[%clk 0:00:45]} 27. c4 {[%clk 0:00:15]}  Nxe4 {[%clk 0:00:44]} 28. f3 {[%clk 0:00:16]}  Nc3 {[%clk 0:00:43]} 29. a4 {[%clk 0:00:16]}  Ra8 {[%clk 0:00:40]} 30. Bc6 {[%clk 0:00:11]}  Ra6 {[%clk 0:00:36]} 31. Bb5 {[%clk 0:00:11]}  Nxb5 {[%clk 0:00:25]} 32. axb5 {[%clk 0:00:12]}  Ra4 {[%clk 0:00:25]} 33. Bxc5 {[%clk 0:00:12]}  Rxc4 {[%clk 0:00:25]} 34. Be3 {[%clk 0:00:13]}  Rc3 {[%clk 0:00:26]} 35. Kf2 {[%clk 0:00:13]}  Rb3 {[%clk 0:00:26]} 36. b6 {[%clk 0:00:13]}  Rb2+ {[%clk 0:00:26]} 37. Ke1 {[%clk 0:00:13]}  Rxh2 {[%clk 0:00:22]} 38. Bf2 {[%clk 0:00:10]}  Rh1+ {[%clk 0:00:22]} 39. Kd2 {[%clk 0:00:11]}  Rb1 {[%clk 0:00:23]} 40. Kc2 {[%clk 0:00:11]}  Rb5 {[%clk 0:00:22]} 41. Kc3 {[%clk 0:00:12]}  Kf8 {[%clk 0:00:20]} 42. Kc4 {[%clk 0:00:12]}  Rb1 {[%clk 0:00:17]} 43. Kc5 {[%clk 0:00:12]}  Ke8 {[%clk 0:00:17]} 44. Kc6 {[%clk 0:00:12]}  Rc1+ {[%clk 0:00:17]} 45. Bc5 {[%clk 0:00:12]}  Kd8 {[%clk 0:00:14]} 46. b7 {[%clk 0:00:13]}  Rxc5+ {[%clk 0:00:15]} 47. Kxc5 {[%clk 0:00:12]}  Kc7 {[%clk 0:00:15]} 48. b8=Q+ {[%clk 0:00:11]}  Kxb8 {[%clk 0:00:16]} 49. Kd6 {[%clk 0:00:12]}  g5 {[%clk 0:00:15]} 50. Ke7 {[%clk 0:00:12]}  h5 {[%clk 0:00:15]} 51. Kxf7 {[%clk 0:00:10]}  h4 {[%clk 0:00:16]} 52. gxh4 {[%clk 0:00:10]}  gxh4 {[%clk 0:00:17]} 53. Kxe6 {[%clk 0:00:11]}  h3 {[%clk 0:00:18]} 54. f4 {[%clk 0:00:12]}  h2 {[%clk 0:00:19]} 55. f5 {[%clk 0:00:13]}  h1=Q {[%clk 0:00:20]} 56. f6 {[%clk 0:00:14]}  Qe4+ {[%clk 0:00:20]} 57. Kf7 {[%clk 0:00:14]}  Kc7 {[%clk 0:00:20]} 58. Kg7 {[%clk 0:00:14]}  Kd7 {[%clk 0:00:20]} 59. f7 {[%clk 0:00:15]}  Qg4+ {[%clk 0:00:20]} 60. Kh8 {[%clk 0:00:15]}  Ke7 {[%clk 0:00:18]} 0-1


[Site "https://www.chess.com"]

[Event "Titled Tuesday Blitz April 19 Early 2022"]
[White "Sharafiev, Azat"]
[Black "Gatterer, Florian"]
[WhiteFideId "4186214"]
[BlackFideId "811688"]
[WhiteElo "2299"]
[BlackElo "2218"]
[Result "1-0"]
[Round "03"]
[TimeControl "180+1"]
[Date "2022.04.19"]
[WhiteClock "0:01:31"]
[BlackClock "0:00:13"]

1. d4 {[%clk 0:03:00]}  e6 {[%clk 0:02:57]} 2. e4 {[%clk 0:02:54]}  d5 {[%clk 0:02:55]} 3. Nc3 {[%clk 0:02:52]}  Nf6 {[%clk 0:02:54]} 4. e5 {[%clk 0:02:51]}  Nfd7 {[%clk 0:02:54]} 5. f4 {[%clk 0:02:52]}  c5 {[%clk 0:02:54]} 6. Nf3 {[%clk 0:02:52]}  Nc6 {[%clk 0:02:54]} 7. Be3 {[%clk 0:02:52]}  a6 {[%clk 0:02:54]} 8. Be2 {[%clk 0:02:50]}  b5 {[%clk 0:02:53]} 9. O-O {[%clk 0:02:50]}  b4 {[%clk 0:02:53]} 10. Na4 {[%clk 0:02:50]}  cxd4 {[%clk 0:02:47]} 11. Nxd4 {[%clk 0:02:49]}  Nxd4 {[%clk 0:02:46]} 12. Bxd4 {[%clk 0:02:50]}  g6 {[%clk 0:02:45]} 13. Bd3 {[%clk 0:02:41]}  Be7 {[%clk 0:02:43]} 14. Kh1 {[%clk 0:02:28]}  a5 {[%clk 0:02:41]} 15. Qe2 {[%clk 0:02:27]}  O-O {[%clk 0:02:31]} 16. g4 {[%clk 0:02:27]}  f5 {[%clk 0:02:13]} 17. exf6 {[%clk 0:02:25]}  Nxf6 {[%clk 0:02:13]} 18. Nb6 {[%clk 0:02:25]}  Rb8 {[%clk 0:01:57]} 19. Nxc8 {[%clk 0:02:13]}  Qxc8 {[%clk 0:01:55]} 20. Rae1 {[%clk 0:02:13]}  Ne4 {[%clk 0:01:00]} 21. Bxe4 {[%clk 0:02:10]}  dxe4 {[%clk 0:01:01]} 22. Qxe4 {[%clk 0:02:10]}  e5 {[%clk 0:00:50]} 23. Qd5+ {[%clk 0:02:07]}  Kg7 {[%clk 0:00:49]} 24. Qxe5+ {[%clk 0:02:03]}  Bf6 {[%clk 0:00:47]} 25. Qe7+ {[%clk 0:02:03]}  Kg8 {[%clk 0:00:37]} 26. Bxf6 {[%clk 0:02:04]}  Qc6+ {[%clk 0:00:35]} 27. Kg1 {[%clk 0:01:53]}  Rxf6 {[%clk 0:00:32]} 28. Qe4 {[%clk 0:01:49]}  Qb6+ {[%clk 0:00:30]} 29. Qe3 {[%clk 0:01:48]}  Qc6 {[%clk 0:00:26]} 30. Rf2 {[%clk 0:01:42]}  Rbf8 {[%clk 0:00:25]} 31. Qe5 {[%clk 0:01:39]}  Qd7 {[%clk 0:00:20]} 32. h3 {[%clk 0:01:35]}  Qf7 {[%clk 0:00:17]} 33. Qxa5 {[%clk 0:01:30]}  Rxf4 {[%clk 0:00:15]} 34. Rxf4 {[%clk 0:01:31]}  Qxf4 {[%clk 0:00:16]} 35. Qd5+ {[%clk 0:01:32]}  Rf7 {[%clk 0:00:16]} 36. Re8+ {[%clk 0:01:31]}  Kg7 {[%clk 0:00:13]} 37. Qe5+ {[%clk 0:01:32]}  Qxe5 {[%clk 0:00:13]} 38. Rxe5 {[%clk 0:01:32]}  Rf3 {[%clk 0:00:13]} 39. Kg2 {[%clk 0:01:31]}  Rg3+ {[%clk 0:00:13]} 40. Kxg3 {[%clk 0:01:31]} 1-0


[Site "https://www.chess.com"]

[Event "Titled Tuesday Blitz April 19 Early 2022"]
[White "Shuvalov, Evgenij"]
[Black "Jobava, Baadur"]
[WhiteFideId "4187237"]
[BlackFideId "13601520"]
[WhiteElo "2130"]
[BlackElo "2617"]
[Result "0-1"]
[Round "03"]
[TimeControl "180+1"]
[Date "2022.04.19"]
[WhiteClock "0:01:22"]
[BlackClock "0:02:34"]

1. Nf3 {[%clk 0:03:00]}  d5 {[%clk 0:02:59]} 2. c4 {[%clk 0:03:00]}  c6 {[%clk 0:02:58]} 3. g3 {[%clk 0:03:00]}  Nf6 {[%clk 0:02:59]} 4. Bg2 {[%clk 0:03:00]}  Bf5 {[%clk 0:02:59]} 5. cxd5 {[%clk 0:02:59]}  cxd5 {[%clk 0:02:59]} 6. Qb3 {[%clk 0:03:00]}  Nbd7 {[%clk 0:02:56]} 7. Qxb7 {[%clk 0:02:53]}  Nc5 {[%clk 0:02:56]} 8. Qb5+ {[%clk 0:02:51]}  Bd7 {[%clk 0:02:56]} 9. Qb4 {[%clk 0:02:32]}  e5 {[%clk 0:02:56]} 10. O-O {[%clk 0:02:16]}  Rb8 {[%clk 0:02:56]} 11. Qc3 {[%clk 0:02:05]}  d4 {[%clk 0:02:56]} 12. Qc2 {[%clk 0:02:02]}  e4 {[%clk 0:02:35]} 13. Nxd4 {[%clk 0:01:59]}  Ba4 {[%clk 0:02:35]} 14. Qc3 {[%clk 0:01:42]}  Nd5 {[%clk 0:02:35]} 15. Qc4 {[%clk 0:01:33]}  Rb4 {[%clk 0:02:34]} 16. Qa6 {[%clk 0:01:22]}  Nxa6 {[%clk 0:02:34]} 0-1


[Site "https://www.chess.com"]

[Event "Titled Tuesday Blitz April 19 Early 2022"]
[White "Sjugirov, Sanan"]
[Black "Cunha, Lucas Aguiar"]
[WhiteFideId "4189302"]
[BlackFideId "2125404"]
[WhiteElo "2602"]
[BlackElo "2361"]
[Result "1-0"]
[Round "03"]
[TimeControl "180+1"]
[Date "2022.04.19"]
[WhiteClock "0:00:05"]
[BlackClock "0:00:15"]

1. e4 {[%clk 0:03:00]}  c5 {[%clk 0:02:22]} 2. Nc3 {[%clk 0:03:00]}  Nc6 {[%clk 0:02:21]} 3. Nge2 {[%clk 0:03:00]}  e6 {[%clk 0:02:19]} 4. d4 {[%clk 0:02:58]}  cxd4 {[%clk 0:02:20]} 5. Nxd4 {[%clk 0:02:59]}  Qc7 {[%clk 0:02:20]} 6. Qd3 {[%clk 0:02:57]}  a6 {[%clk 0:02:20]} 7. Nxc6 {[%clk 0:02:57]}  dxc6 {[%clk 0:02:18]} 8. Qg3 {[%clk 0:02:52]}  e5 {[%clk 0:02:18]} 9. f4 {[%clk 0:02:07]}  exf4 {[%clk 0:01:31]} 10. Bxf4 {[%clk 0:02:07]}  Qb6 {[%clk 0:01:31]} 11. O-O-O {[%clk 0:02:05]}  Be6 {[%clk 0:01:32]} 12. Be2 {[%clk 0:01:51]}  Nf6 {[%clk 0:01:30]} 13. Rhf1 {[%clk 0:01:44]}  h5 {[%clk 0:01:18]} 14. Bg5 {[%clk 0:01:21]}  Qa5 {[%clk 0:01:06]} 15. e5 {[%clk 0:00:36]}  Nd7 {[%clk 0:01:01]} 16. Bf4 {[%clk 0:00:09]}  h4 {[%clk 0:00:54]} 17. Qe3 {[%clk 0:00:07]}  Bc5 {[%clk 0:00:45]} 18. Qe4 {[%clk 0:00:07]}  Bb4 {[%clk 0:00:45]} 19. Nb1 {[%clk 0:00:04]}  Nc5 {[%clk 0:00:37]} 20. Qe3 {[%clk 0:00:04]}  Qxa2 {[%clk 0:00:34]} 21. Qd4 {[%clk 0:00:02]}  Qa4 {[%clk 0:00:14]} 22. Bd2 {[%clk 0:00:02]}  Bxd2+ {[%clk 0:00:13]} 23. Rxd2 {[%clk 0:00:02]}  Qxd4 {[%clk 0:00:14]} 24. Rxd4 {[%clk 0:00:03]}  Rd8 {[%clk 0:00:14]} 25. Rxd8+ {[%clk 0:00:03]}  Kxd8 {[%clk 0:00:15]} 26. Nd2 {[%clk 0:00:04]}  Kc7 {[%clk 0:00:14]} 27. Nf3 {[%clk 0:00:04]}  Nd7 {[%clk 0:00:14]} 28. h3 {[%clk 0:00:04]}  Bd5 {[%clk 0:00:14]} 29. Ng5 {[%clk 0:00:03]}  Nxe5 {[%clk 0:00:14]} 30. Rf4 {[%clk 0:00:02]}  f6 {[%clk 0:00:14]} 31. Nf3 {[%clk 0:00:02]}  Nxf3 {[%clk 0:00:14]} 32. gxf3 {[%clk 0:00:02]}  Be6 {[%clk 0:00:14]} 33. Bf1 {[%clk 0:00:02]}  Kd6 {[%clk 0:00:14]} 34. Kd2 {[%clk 0:00:02]}  Ke5 {[%clk 0:00:14]} 35. Re4+ {[%clk 0:00:03]}  Kd6 {[%clk 0:00:14]} 36. Rf4 {[%clk 0:00:03]}  Bd5 {[%clk 0:00:14]} 37. c4 {[%clk 0:00:03]}  Be6 {[%clk 0:00:15]} 38. Kc3 {[%clk 0:00:04]}  Rh5 {[%clk 0:00:15]} 39. b4 {[%clk 0:00:03]}  Ke7 {[%clk 0:00:16]} 40. c5 {[%clk 0:00:04]}  Kf7 {[%clk 0:00:15]} 41. Rd4 {[%clk 0:00:03]}  Bd5 {[%clk 0:00:15]} 42. Rf4 {[%clk 0:00:03]}  Ke6 {[%clk 0:00:15]} 43. Kd4 {[%clk 0:00:03]}  Rh8 {[%clk 0:00:15]} 44. Ke3 {[%clk 0:00:03]}  g5 {[%clk 0:00:15]} 45. Rd4 {[%clk 0:00:03]}  Re8 {[%clk 0:00:14]} 46. Kf2 {[%clk 0:00:04]}  Kf5 {[%clk 0:00:14]} 47. Bd3+ {[%clk 0:00:03]}  Ke5 {[%clk 0:00:15]} 48. Rg4 {[%clk 0:00:04]}  Be6 {[%clk 0:00:15]} 49. Re4+ {[%clk 0:00:05]}  Kd5 {[%clk 0:00:15]} 50. Bc4# {[%clk 0:00:05]} 1-0


[Site "https://www.chess.com"]

[Event "Titled Tuesday Blitz April 19 Early 2022"]
[White "Starosta, Martyna"]
[Black "Lehtosaari, Mauri"]
[WhiteFideId "21818754"]
[BlackFideId "501999"]
[WhiteElo "1716"]
[BlackElo "2541"]
[Result "0-1"]
[Round "03"]
[TimeControl "180+1"]
[Date "2022.04.19"]
[WhiteClock "0:00:31"]
[BlackClock "0:00:20"]

1. c4 {[%clk 0:03:00]}  c6 {[%clk 0:02:59]} 2. d4 {[%clk 0:03:00]}  d5 {[%clk 0:02:59]} 3. Nc3 {[%clk 0:03:00]}  Nf6 {[%clk 0:02:58]} 4. Nf3 {[%clk 0:02:58]}  dxc4 {[%clk 0:02:58]} 5. e4 {[%clk 0:02:58]}  b5 {[%clk 0:02:57]} 6. a4 {[%clk 0:02:55]}  b4 {[%clk 0:02:47]} 7. Na2 {[%clk 0:02:54]}  e6 {[%clk 0:02:08]} 8. e5 {[%clk 0:02:45]}  Nd5 {[%clk 0:02:02]} 9. Bxc4 {[%clk 0:02:45]}  Be7 {[%clk 0:01:57]} 10. O-O {[%clk 0:02:45]}  O-O {[%clk 0:01:54]} 11. Bd2 {[%clk 0:02:45]}  a5 {[%clk 0:01:54]} 12. Nc1 {[%clk 0:02:44]}  Bb7 {[%clk 0:01:32]} 13. Nd3 {[%clk 0:02:42]}  Nd7 {[%clk 0:01:32]} 14. Bb3 {[%clk 0:02:40]}  c5 {[%clk 0:01:29]} 15. dxc5 {[%clk 0:02:39]}  Nxc5 {[%clk 0:01:28]} 16. Nxc5 {[%clk 0:02:38]}  Bxc5 {[%clk 0:01:29]} 17. Rc1 {[%clk 0:02:38]}  Rc8 {[%clk 0:01:27]} 18. Qe2 {[%clk 0:02:37]}  Ne7 {[%clk 0:00:43]} 19. Bg5 {[%clk 0:02:25]}  Qb6 {[%clk 0:00:25]} 20. Bc2 {[%clk 0:02:04]}  Ng6 {[%clk 0:00:20]} 21. h4 {[%clk 0:01:57]}  h6 {[%clk 0:00:14]} 22. Bd2 {[%clk 0:01:45]}  Bxf3 {[%clk 0:00:13]} 23. Qxf3 {[%clk 0:01:38]}  Nxh4 {[%clk 0:00:14]} 24. Qg4 {[%clk 0:01:34]}  Nf5 {[%clk 0:00:11]} 25. Bxf5 {[%clk 0:01:29]}  exf5 {[%clk 0:00:12]} 26. Qxf5 {[%clk 0:01:30]}  Qe6 {[%clk 0:00:11]} 27. Qxe6 {[%clk 0:01:23]}  fxe6 {[%clk 0:00:12]} 28. Be3 {[%clk 0:01:18]}  Bxe3 {[%clk 0:00:12]} 29. fxe3 {[%clk 0:01:18]}  Rxf1+ {[%clk 0:00:11]} 30. Rxf1 {[%clk 0:01:18]}  Rc2 {[%clk 0:00:12]} 31. Rf2 {[%clk 0:01:16]}  Rxf2 {[%clk 0:00:11]} 32. Kxf2 {[%clk 0:01:17]}  Kf7 {[%clk 0:00:11]} 33. Kf3 {[%clk 0:01:14]}  Kg6 {[%clk 0:00:11]} 34. Kf4 {[%clk 0:01:11]}  Kh5 {[%clk 0:00:10]} 35. g3 {[%clk 0:01:04]}  g6 {[%clk 0:00:08]} 36. b3 {[%clk 0:01:04]}  g5+ {[%clk 0:00:06]} 37. Kf3 {[%clk 0:01:03]}  Kg6 {[%clk 0:00:06]} 38. e4 {[%clk 0:00:51]}  h5 {[%clk 0:00:07]} 39. Kg2 {[%clk 0:00:31]}  Kf7 {[%clk 0:00:07]} 40. Kf3 {[%clk 0:00:30]}  Ke7 {[%clk 0:00:08]} 41. Ke3 {[%clk 0:00:26]}  Kd7 {[%clk 0:00:08]} 42. Kd3 {[%clk 0:00:25]}  Kc6 {[%clk 0:00:07]} 43. Ke3 {[%clk 0:00:25]}  Kc5 {[%clk 0:00:07]} 44. Kd3 {[%clk 0:00:25]}  h4 {[%clk 0:00:08]} 45. gxh4 {[%clk 0:00:26]}  gxh4 {[%clk 0:00:09]} 46. Ke3 {[%clk 0:00:26]}  h3 {[%clk 0:00:09]} 47. Kf2 {[%clk 0:00:26]}  Kd4 {[%clk 0:00:10]} 48. Kg3 {[%clk 0:00:26]}  Kxe4 {[%clk 0:00:10]} 49. Kxh3 {[%clk 0:00:26]}  Kxe5 {[%clk 0:00:11]} 50. Kg3 {[%clk 0:00:26]}  Kd4 {[%clk 0:00:12]} 51. Kf4 {[%clk 0:00:25]}  Kc3 {[%clk 0:00:13]} 52. Ke5 {[%clk 0:00:25]}  Kxb3 {[%clk 0:00:14]} 53. Kxe6 {[%clk 0:00:26]}  Kxa4 {[%clk 0:00:15]} 54. Kd5 {[%clk 0:00:26]}  Kb3 {[%clk 0:00:15]} 55. Kd4 {[%clk 0:00:27]}  a4 {[%clk 0:00:16]} 56. Kd3 {[%clk 0:00:27]}  Kb2 {[%clk 0:00:16]} 57. Kc4 {[%clk 0:00:27]}  b3 {[%clk 0:00:17]} 58. Kb4 {[%clk 0:00:27]}  a3 {[%clk 0:00:18]} 59. Kc4 {[%clk 0:00:28]}  a2 {[%clk 0:00:19]} 60. Kd3 {[%clk 0:00:28]}  a1=Q {[%clk 0:00:19]} 61. Kd2 {[%clk 0:00:29]}  Qc1+ {[%clk 0:00:19]} 62. Kd3 {[%clk 0:00:30]}  Qc2+ {[%clk 0:00:19]} 63. Kd4 {[%clk 0:00:30]}  Qc3+ {[%clk 0:00:20]} 64. Ke4 {[%clk 0:00:31]}  Kc2 {[%clk 0:00:20]} 0-1


[Site "https://www.chess.com"]

[Event "Titled Tuesday Blitz April 19 Early 2022"]
[White "Suarez Uriel, Adrian"]
[Black "Brodowski, Piotr"]
[WhiteFideId "22230874"]
[BlackFideId "1124480"]
[WhiteElo "2316"]
[BlackElo "2422"]
[Result "0-1"]
[Round "03"]
[TimeControl "180+1"]
[Date "2022.04.19"]
[WhiteClock "0:01:01"]
[BlackClock "0:00:07"]

1. e4 {[%clk 0:03:00]}  d6 {[%clk 0:02:56]} 2. d4 {[%clk 0:03:00]}  g6 {[%clk 0:02:55]} 3. Nc3 {[%clk 0:03:00]}  Bg7 {[%clk 0:02:54]} 4. Nf3 {[%clk 0:02:58]}  a6 {[%clk 0:02:54]} 5. a4 {[%clk 0:02:57]}  Nd7 {[%clk 0:02:48]} 6. Be2 {[%clk 0:02:54]}  c5 {[%clk 0:02:30]} 7. O-O {[%clk 0:02:52]}  cxd4 {[%clk 0:02:29]} 8. Nxd4 {[%clk 0:02:53]}  Ngf6 {[%clk 0:02:30]} 9. a5 {[%clk 0:02:47]}  O-O {[%clk 0:02:30]} 10. Be3 {[%clk 0:02:46]}  Nc5 {[%clk 0:02:29]} 11. f3 {[%clk 0:02:44]}  Bd7 {[%clk 0:02:29]} 12. b4 {[%clk 0:02:40]}  Ne6 {[%clk 0:02:26]} 13. Nd5 {[%clk 0:02:38]}  Bc6 {[%clk 0:01:37]} 14. c4 {[%clk 0:02:31]}  Bxd5 {[%clk 0:01:35]} 15. cxd5 {[%clk 0:02:21]}  Nxd4 {[%clk 0:01:35]} 16. Bxd4 {[%clk 0:02:21]}  Rc8 {[%clk 0:01:36]} 17. Qd2 {[%clk 0:02:18]}  Nd7 {[%clk 0:01:24]} 18. Rac1 {[%clk 0:02:17]}  Bxd4+ {[%clk 0:01:04]} 19. Qxd4 {[%clk 0:02:16]}  Rc7 {[%clk 0:01:05]} 20. Qd2 {[%clk 0:02:10]}  Qb8 {[%clk 0:00:51]} 21. Rxc7 {[%clk 0:02:10]}  Qxc7 {[%clk 0:00:52]} 22. Rc1 {[%clk 0:02:10]}  Qb8 {[%clk 0:00:52]} 23. Qc3 {[%clk 0:02:02]}  Nf6 {[%clk 0:00:39]} 24. Qc7 {[%clk 0:01:51]}  Qa7+ {[%clk 0:00:32]} 25. Qb6 {[%clk 0:01:50]}  Qxb6+ {[%clk 0:00:29]} 26. axb6 {[%clk 0:01:51]}  Rb8 {[%clk 0:00:29]} 27. Rc7 {[%clk 0:01:48]}  Kf8 {[%clk 0:00:29]} 28. Bd1 {[%clk 0:01:31]}  Ne8 {[%clk 0:00:22]} 29. Rd7 {[%clk 0:01:28]}  Nf6 {[%clk 0:00:21]} 30. Rc7 {[%clk 0:01:28]}  Ne8 {[%clk 0:00:21]} 31. Rc4 {[%clk 0:01:28]}  Nf6 {[%clk 0:00:21]} 32. Ba4 {[%clk 0:01:27]}  g5 {[%clk 0:00:11]} 33. Rc7 {[%clk 0:01:22]}  h5 {[%clk 0:00:10]} 34. Bc6 {[%clk 0:01:09]}  bxc6 {[%clk 0:00:07]} 35. b7 {[%clk 0:01:10]}  Ne8 {[%clk 0:00:06]} 36. Rd7 {[%clk 0:01:03]}  cxd5 {[%clk 0:00:06]} 37. exd5 {[%clk 0:01:02]}  Nf6 {[%clk 0:00:06]} 38. Rc7 {[%clk 0:01:01]}  Kg7 {[%clk 0:00:06]} 39. Rxe7 {[%clk 0:01:00]}  Nxd5 {[%clk 0:00:07]} 40. Rd7 {[%clk 0:01:00]}  Nxb4 {[%clk 0:00:07]} 41. Rxd6 {[%clk 0:01:01]}  Rxb7 {[%clk 0:00:07]} 42. Rd4 {[%clk 0:01:01]}  a5 {[%clk 0:00:07]} 0-1


[Site "https://www.chess.com"]